{"text_format":"1","workbook":"xlsx","n_sheets":1,"sheets":["Feuil1"],"not_rendered":{"charts":0,"images":1,"macros":1,"external_links":0,"defined_names":1,"comments":0,"pivot_tables":0},"unopened":[],"bounds":{"document_bytes":16777216,"sheet_cells":100000,"rows_first":2000,"rows_last":500,"rows_between":2000,"halvings":0,"cell_chars":16384,"cell_head_chars":4096},"cells_cut":0,"cells_raw":0,"read":"whole","date_system":"1900"}

{"sheet":"Feuil1","index":0,"n_rows":19,"n_cols":15,"rows_kept":19,"cut":false,"hidden":false,"merged":[[2,7,9,12]]}
[]
[]
[null,"بقوق نجيب",null,null,null,null,null,"المطلوب ادخال بيانات الطالب حسب اسمه في الخلية المنسدلة مثلا لما اختار الطالب بن خاذر خالد وادرج نتائجة مباشرة تطلع نتائجه في الجدوال الأصلي وهكذا مع جميع الطلاب"]
[]
[]
[null,null,"فرض 1"," فرض 2","الاختبار"]
[null,null,10,15,20]
[]
["الرقم","الاسم واللقب","فرض 1"," فرض 2","الاختبار","المعدل",null,null,null,null,null,null,null,null,{"$f":"IF(B10=$C$3,1,0)","v":0}]
[1,"أولا نصير رياض",{"$f":"IFERROR(INDEX($C$7,MATCH($B$3,$B10,0)),\"\")","v":""},{"$f":"IFERROR(INDEX($D$7,MATCH($B$3,$B10,0)),\"\")","v":""},{"$f":"IFERROR(INDEX($E$7,MATCH($B$3,$B10,0)),\"\")","v":""},null,null,null,null,null,null,null,null,null,{"$f":"IF(B11=$C$3,1,0)","v":0}]
[2,"بركات بشرى",{"$f":"IFERROR(INDEX($C$7,MATCH($B$3,$B11,0)),\"\")","v":""},{"$f":"IFERROR(INDEX($D$7,MATCH($B$3,$B11,0)),\"\")","v":""},{"$f":"IFERROR(INDEX($E$7,MATCH($B$3,$B11,0)),\"\")","v":""},null,null,null,null,null,null,null,null,null,0]
[3,"بقوق نجيب",10,15,20,null,null,null,null,null,null,null,null,null,0]
[4,"بلعيد ايمان","","","",null,null,null,null,null,null,null,null,null,0]
[5,"بن خادر خالد","","","",null,null,null,null,null,null,null,null,null,0]
[6,"بن دادة محمد اكرم","","","",null,null,null,null,null,null,null,null,null,0]
[7,"بن صابرو محمد","","","",null,null,null,null,null,null,null,null,null,0]
[8,"بن عامر أسامة","","","",null,null,null,null,null,null,null,null,null,0]
[9,"بن مجاهد هند","","","",null,null,null,null,null,null,null,null,null,0]
[10,"بن معطي الحاج محمد","","",""]